fUST/lending_fUST_20240815
["ID","MTS","AMOUNT","RATE_DAILY","PERIOD"]
[335005195,1723727440283,-193.53718372,0.00026973,2]
[335005196,1723727440292,-152.9620099,0.0002699,3]
[335005232,1723727518347,500.0,0.0002599,120]
[335005233,1723727518985,500.0,0.0002599,120]
[335005234,1723727519787,518.66,0.0002599,120]
[335005245,1723728226094,850.51877308,9.999e-05,2]
[335005317,1723728632155,-159.10458921,0.00011731,2]
[335005319,1723728632165,-174.75672236,0.00012779,2]
[335005321,1723728632176,-638.58541481,0.00012886,2]
[335005323,1723728632186,-465.56266672,0.00013597,2]
[335005325,1723728632196,-750.0,0.00014247,2]
[335005327,1723728632205,-504.39479182,0.00015,2]
[335005329,1723728632215,-250.6065301,0.00018695,2]
[335005331,1723728632225,-300.0,0.00018716,2]
[335005333,1723728632234,-300.0,0.00018716,2]
[335005335,1723728632244,-4105.63798536,0.00018717,2]
[335005387,1723728638869,-519.94289871,0.00010081,2]
[335005389,1723728638878,-341.43157984,0.00012886,2]
[335005391,1723728638891,-234.34404591,0.0001404,2]
[335005393,1723728638900,-477.52277554,0.00018717,2]
[335005416,1723728640405,-4638.7292395,0.00018717,2]
[335005417,1723728640415,-251.0,0.00019178,2]
[335005419,1723728640425,-249.165515,0.00019665,2]
[335005421,1723728640435,-156.56267046,0.0002,2]
[335005423,1723728640449,-750.0,0.00020707,2]
[335005424,1723728640459,-371.85724114,0.000212,30]
[335005425,1723728640469,-1755.86464126,0.00024,11]
[335005426,1723728640480,-4351.0,0.00024,2]
[335005427,1723728640489,-27667.56820296,0.00024,60]
[335005428,1723728640507,-400.0,0.00024,60]
[335005429,1723728640521,-2664.15163857,0.00024,60]
[335005430,1723728643483,-112.38552708,0.00024,60]
[335005440,1723728648286,-365279.61927232,0.00024,60]
[335005556,1723729833599,-174.75672236,0.00012782,2]
[335005557,1723729833610,-3076.64484759,0.00012951,2]
[335005558,1723729833621,-154.77557542,0.00013051,2]
[335005559,1723729833631,-268.999832,0.00014247,2]
[335005560,1723729833642,-750.0,0.00014247,2]
[335005561,1723729833652,-200.0,0.00014519,2]
[335005562,1723729833667,-193.53718372,0.00014519,2]
[335005563,1723729833676,-504.24371511,0.0001545,2]
[335005564,1723729833687,-504.24371511,0.000156,2]
[335005565,1723729833696,-589.60728311,0.0001575,2]
[335005566,1723729833706,-325.19112558,0.00018321,2]
[335005625,1723729838788,-3308.70353558,0.00018321,2]
[335005627,1723729838797,-300.0,0.0001836,2]
[335005629,1723729838806,-300.0,0.0001836,2]
[335005632,1723729838816,-24900.0,0.00018361,2]
[335005634,1723729838825,-225.0,0.00018421,2]
[335005636,1723729838835,-225.0,0.00018471,2]
[335005637,1723729838844,-225.0,0.00018522,2]
[335005639,1723729838856,-225.0,0.00018573,2]
[335005641,1723729838865,-225.0,0.00018623,2]
[335005643,1723729838875,-225.0,0.00018674,2]
[335005645,1723729838884,-225.0,0.00018724,2]
[335005647,1723729838894,-225.0,0.00018775,2]
[335005649,1723729838903,-225.0,0.00018825,2]
[335005651,1723729838912,-225.0,0.00018876,2]
[335005653,1723729838921,-225.0,0.00018926,2]
[335005655,1723729838931,-340.4033848,0.00018959,2]
[335005657,1723729838939,-225.0,0.00018977,2]
[335005659,1723729838948,-225.0,0.00019027,2]
[335005661,1723729838958,-225.0,0.00019078,2]
[335005663,1723729838967,-225.0,0.00019128,2]
[335005665,1723729838976,-249.1655284,0.00019178,2]
[335005667,1723729838985,-251.0,0.00019178,2]
[335005669,1723729838994,-236.707239,0.00019178,2]
[335005671,1723729839004,-225.0,0.00019179,2]
[335005673,1723729839013,-225.0,0.00019229,2]
[335005675,1723729839022,-225.0,0.0001928,2]
[335005677,1723729839031,-225.0,0.0001933,2]
[335005679,1723729839040,-225.0,0.00019381,2]
[335005681,1723729839049,-156.56267046,0.0002,2]
[335005683,1723729839058,-345.0,0.00020025,2]
[335005685,1723729839067,-268.999832,0.00020707,2]
[335005687,1723729839076,-750.0,0.00020707,2]
[335005689,1723729839086,-150.0,0.00021989,2]
[335005690,1723729839095,-2500.0,0.00022,2]
[335005692,1723729839104,-150.0,0.00022989,2]
[335005694,1723729839113,-1610.30682385,0.00023375,2]
[335005697,1723729839129,-2023.58783731,0.00023375,2]
[335005698,1723729839139,-2913.16084785,0.00023899,2]
[335005699,1723729839148,-2838.0678167,0.000239,2]
[335005700,1723729839157,-200.0,0.00023973,2]
[335005701,1723729839167,-150.0,0.00023989,2]
[335005702,1723729839176,-33733.4646579,0.0002399,3]
[335005703,1723729839185,-699.89,0.0002399,3]
[335005704,1723729839194,-699.84,0.0002399,3]
[335005705,1723729839203,-1755.86464126,0.00024,11]
[335005706,1723729839212,-49227.55117393,0.00024,60]
[335005707,1723729839224,-22210.85944546,0.00024,60]
[335005722,1723729840799,-40191.74751032,0.00024,60]
[335005723,1723729840811,-6537.1217821,0.00024,60]
[335005746,1723729843597,-2194.28011061,0.00024,60]
[335005774,1723729846537,-494.20909689,0.00024,60]
[335005776,1723729846593,-8532.44910395,0.00024,60]
[335005777,1723729846603,-20158.44278782,0.00024,2]
[335005778,1723729846612,-220.34992971,0.00024,2]
[335005779,1723729846622,-154.79103211,0.00024,2]
[335005780,1723729846631,-98633.85388394,0.00024,7]
[335005781,1723729846641,-285.02752751,0.00024,2]
[335005782,1723729846650,-1880.65022478,0.00024,2]
[335005783,1723729846660,-834.32224871,0.00024,2]
[335005784,1723729846673,-2606.26346968,0.00024172,2]
[335005785,1723729846683,-882.43417531,0.00024177,2]
[335005786,1723729846693,-152.36686118,0.00024208,2]
[335005787,1723729846702,-10337.19273734,0.00024213,2]
[335005788,1723729846712,-5242.02170044,0.00024308,2]
[335005789,1723729846722,-185.89434159,0.0002433,2]
[335005790,1723729846731,-782.12449386,0.00024349,2]
[335005791,1723729846740,-1110.29005483,0.00024366,2]
[335005792,1723729846749,-271.33563937,0.00024366,2]
[335005793,1723729846760,-160.73794928,0.00024395,2]
[335005794,1723729846769,-277.52010074,0.00024442,2]
[335005795,1723729846779,-2838.06781667,0.0002465,2]
[335005796,1723729846788,-200.0,0.00024658,15]
[335005797,1723729846797,-150.0,0.00024989,2]
[335005798,1723729846807,-6746.69293159,0.0002499,3]
[335005799,1723729846817,-23226.33098157,0.00025,30]
[335005800,1723729846827,-5000.0,0.00025,3]
[335005801,1723729846836,-154.79103211,0.00025,2]
[335005802,1723729846846,-5000.0,0.00025,2]
[335005803,1723729846871,-151.0,0.00025,7]
[335005804,1723729846884,-216.380621,0.00025,7]
[335005805,1723729846894,-216.380621,0.00025,7]
[335005806,1723729846906,-582.031653,0.00025,2]
[335005807,1723729846917,-582.031653,0.00025,2]
[335005808,1723729846926,-151.0,0.00025,7]
[335005809,1723729846938,-179.179367,0.00025,7]
[335005810,1723729846948,-151.0,0.00025,7]
[335005811,1723729846959,-151.0,0.00025,7]
[335005812,1723729846969,-151.0,0.00025,7]
[335005813,1723729846979,-151.0,0.00025,7]
[335005814,1723729846989,-189.949551,0.00025,7]
[335005815,1723729846999,-189.949551,0.00025,7]
[335005816,1723729847010,-151.0,0.00025,7]
[335005817,1723729847021,-183.283758,0.00025,7]
[335005818,1723729847031,-183.283758,0.00025,7]
[335005819,1723729847042,-151.0,0.00025,7]
[335005820,1723729847054,-170.906463,0.00025,7]
[335005821,1723729847064,-170.906463,0.00025,7]
[335005822,1723729847074,-275.041198,0.00025,7]
[335005823,1723729847085,-151.0,0.00025,7]
[335005824,1723729847095,-2838.06781667,0.000254,2]
[335005825,1723729847104,-589.133361,0.00025574,2]
[335005826,1723729847115,-150.0,0.00025989,2]
[335005827,1723729847125,-500.0,0.0002599,7]
[335005828,1723729847135,-500.0,0.0002599,7]
[335005829,1723729847146,-385.01,0.0002599,7]
[335005830,1723729847156,-155.98072788,0.0002599,2]
[335005831,1723729847166,-286.96667805,0.0002599,2]
[335005832,1723729847177,-5000.0,0.00026,2]
[335005833,1723729847187,-2838.06781667,0.0002615,2]
[335005834,1723729847196,-152.36686118,0.00026208,2]
[335005835,1723729847207,-236.707239,0.00026388,2]
[335005836,1723729847217,-2838.06781667,0.000269,2]
[335005837,1723729847227,-150.0,0.00026989,2]
[335005838,1723729847238,-216.380621,0.0002699,7]
[335005839,1723729847248,-216.380621,0.0002699,7]
[335005840,1723729847258,-582.031653,0.0002699,2]
[335005841,1723729847268,-582.031653,0.0002699,2]
[335005842,1723729847278,-151.0,0.0002699,7]
[335005843,1723729847288,-179.179367,0.0002699,7]
[335005844,1723729847297,-151.0,0.0002699,7]
[335005845,1723729847307,-151.0,0.0002699,7]
[335005846,1723729847318,-151.0,0.0002699,7]
[335005847,1723729847329,-189.949551,0.0002699,7]
[335005848,1723729847339,-189.949551,0.0002699,7]
[335005849,1723729847349,-20240.0787948,0.0002699,3]
[335005850,1723729847359,-151.0,0.0002699,7]
[335005851,1723729847369,-183.283758,0.0002699,7]
[335005852,1723729847378,-183.283758,0.0002699,7]
[335005853,1723729847387,-59528.62102251,0.00027,2]
[335005854,1723729847405,-9703.202,0.00027,2]
[335005855,1723729847418,-477.29908137,0.00027,2]
[335005856,1723729847429,-5943.74571374,0.00027,2]
[335005857,1723729860269,273.37336231,9.9e-05,2]
[335005858,1723729877297,273.37336231,9.9e-05,2]
[335005859,1723729894461,273.37336231,9.9e-05,2]
[335005860,1723729910276,273.37336231,9.9e-05,2]
[335005866,1723729926438,273.37336231,9.9e-05,2]
[335005867,1723729943040,273.37336231,9.9e-05,2]
[335005882,1723730436485,174.75672236,0.00010081,2]
[335005890,1723730972407,5000.0,0.0002375,49]
[335005955,1723731034118,-2737.69714194,0.0001016,2]
[335006023,1723731038903,-3151.42657049,0.0001016,2]
[335006024,1723731038912,-154.76012181,0.00012219,2]
[335006025,1723731038922,-154.76012181,0.00012219,2]
[335006026,1723731038931,-336.59268156,0.000136,2]
[335006027,1723731038955,-242.099848,0.00014247,2]
[335006028,1723731038968,-163.23069,0.00014547,2]
[335006029,1723731038978,-163.23069,0.00014642,2]
[335006030,1723731038987,-163.23069,0.00014736,2]
[335006031,1723731038997,-163.23069,0.00014831,2]
[335006032,1723731039007,-163.23069,0.00014926,2]
[335006033,1723731039017,-154.89911116,0.00015,2]
[335006034,1723731039027,-154.76012181,0.00015,2]
[335006035,1723731039037,-163.23069,0.00015021,2]
[335006036,1723731039047,-163.23069,0.00015115,2]
[335006037,1723731039057,-163.23069,0.0001521,2]
[335006038,1723731039066,-300.0,0.0001521,2]
[335006039,1723731039076,-24900.0,0.00015211,2]
[335006040,1723731039085,-163.23069,0.00015305,2]
[335006041,1723731039095,-2725.42099587,0.0001547,2]
[335006042,1723731039104,-277.52010074,0.000165,2]
[335006043,1723731039114,-10337.19273734,0.00017898,2]
[335006044,1723731039124,-251.0,0.00019178,2]
[335006045,1723731039134,-156.56267046,0.0002,2]
[335006046,1723731039143,-271.33563937,0.0002,2]
[335006047,1723731039153,-10502.54869245,0.0002,2]
[335006048,1723731039162,-1592.02562059,0.000203,2]
[335006049,1723731039205,-1014.23784909,0.000203,2]
[335006050,1723731039215,-242.099848,0.00020707,2]
[335006051,1723731039224,-2725.42099587,0.00020931,2]
[335006052,1723731039234,-882.43417531,0.0002217,2]
[335006053,1723731039244,-11507.2417949,0.00023912,2]
[335006054,1723731039258,-3691.0,0.00024,2]
[335006055,1723731039268,-5242.02170044,0.00024143,2]
[335006056,1723731039277,-2506.28063425,0.00024143,2]
[335006057,1723731039499,174.75672236,0.00010081,2]
[335006079,1723731040787,-2735.74106619,0.00024143,2]
[335006080,1723731040798,-782.12449386,0.00024172,2]
[335006081,1723731040810,-1110.29005483,0.00024177,2]
[335006082,1723731040823,-160.73794928,0.00024193,2]
[335006083,1723731040834,-152.36686117,0.00024691,2]
[335006084,1723731040847,-4698.9519925,0.0002498,3]
[335006085,1723731040863,-18748.7880075,0.0002498,3]
[335006086,1723731040875,-21442.95950282,0.0002499,3]
[335006093,1723731043745,-6694.32049718,0.0002499,3]
[335006094,1723731043760,-7444.68862616,0.00025,30]
[335006135,1723731046817,-1110.29005483,0.00024177,2]
[335006136,1723731046829,-15781.64235541,0.00025,30]
[335006137,1723731046841,-154.76012181,0.00025,2]
[335006138,1723731046853,-286.96667805,0.00025,2]
[335006139,1723731046864,-5000.0,0.00026,2]
[335006141,1723731046876,-153.0,0.00026059,2]
[335006142,1723731046887,-153.0,0.00026059,2]
[335006143,1723731046900,-153.0,0.00026059,2]
[335006144,1723731046911,-2725.42099587,0.00026393,2]
[335006145,1723731046923,-150.0,0.0002658,2]
[335006146,1723731046935,-152.36686117,0.00026691,2]
[335006147,1723731046946,-203.50934828,0.00026999,2]
[335006148,1723731046959,-1497.1902152,0.00026999,2]
[335006149,1723731046971,-13526.86874308,0.00027,2]
[335006150,1723731046983,-5000.0,0.00027,4]
[335006151,1723731046994,-465.625322,0.00027,2]
[335006152,1723731047005,-465.625322,0.00027,2]
[335006153,1723731047016,-750.0,0.00027167,2]
[335006154,1723731047028,-242.099848,0.00027167,2]
[335006155,1723731047039,-150.0,0.00027989,2]
[335006156,1723731047050,-11614.4600986,0.0002799,2]
[335006157,1723731047062,-5000.0,0.00028,5]
[335006158,1723731047073,-307.5532993,0.00028356,2]
[335006159,1723731047084,-152.36686117,0.00028691,2]
[335006160,1723731047096,-150.0,0.00028989,2]
[335006161,1723731047107,-150.0,0.00029989,2]
[335006162,1723731047120,-488.76138541,0.0003,3]
[335006163,1723731047132,-458.99284427,0.0003,5]
[335006164,1723731047142,-1104.6785039,0.0003,4]
[335006165,1723731047153,-392.73767083,0.0003,30]
[335006166,1723731047163,-229.0,0.0003,2]
[335006167,1723731047172,-272.0,0.0003,2]
[335006168,1723731047181,-5000.0,0.0003,30]
[335006169,1723731047191,-19539.78,0.00030206,3]
[335006170,1723731047202,-34039.86226725,0.00030216,5]
[335006171,1723731047339,-2000.0,0.00030217,2]
[335006172,1723731047349,-465.625322,0.00030316,2]
[335006173,1723731047358,-151.0,0.00030316,7]
[335006174,1723731047367,-465.625322,0.00030316,2]
[335006175,1723731047377,-1643.65,0.00030316,2]
[335006176,1723731047386,-1643.65,0.00030316,2]
[335006177,1723731047395,-1643.65,0.00030316,2]
[335006178,1723731047405,-1643.65,0.00030316,2]
[335006179,1723731047414,-1643.65,0.00030316,2]
[335006180,1723731047423,-1643.65,0.00030316,2]
[335006181,1723731047431,-1643.65,0.00030316,2]
[335006182,1723731047441,-1643.65,0.00030316,2]
[335006183,1723731047455,-1643.65,0.00030316,2]
[335006184,1723731047464,-1643.65,0.00030316,2]
[335006185,1723731047473,-1643.65,0.00030316,2]
[335006186,1723731047482,-1643.65,0.00030316,2]
[335006187,1723731047491,-1643.65,0.00030316,2]
[335006188,1723731047500,-1643.65,0.00030316,2]
[335006189,1723731047509,-1643.65,0.00030316,2]
[335006190,1723731047519,-1643.65,0.00030316,2]
[335006191,1723731047529,-1643.65,0.00030316,2]
[335006192,1723731047539,-1643.65,0.00030316,2]
[335006193,1723731047548,-1643.65,0.00030316,2]
[335006194,1723731047557,-1643.65,0.00030316,2]
[335006195,1723731047567,-1643.65,0.00030316,2]
[335006196,1723731047577,-1643.65,0.00030316,2]
[335006197,1723731047586,-1643.65,0.00030316,2]
[335006198,1723731047595,-1643.65044034,0.00030316,2]
[335006199,1723731047605,-161.26143,0.00030316,7]
[335006200,1723731047614,-151.0,0.00030316,7]
[335006201,1723731047624,-151.0,0.00030316,7]
[335006202,1723731047634,-151.0,0.00030316,7]
[335006203,1723731047644,-151.0,0.00030316,7]
[335006204,1723731047653,-151.0,0.00030316,7]
[335006205,1723731047663,-151.0,0.00030316,7]
[335006206,1723731047673,-151.0,0.00030316,7]
[335006207,1723731047682,-151.0,0.00030316,7]
[335006208,1723731047692,-151.0,0.00030316,7]
[335006209,1723731047710,-151.0,0.00030316,7]
[335006210,1723731047720,-151.0,0.00030316,7]
[335006211,1723731047730,-229.823371,0.00030316,7]
[335006212,1723731047740,-367.891517,0.00030316,7]
[335006213,1723731047749,-367.891517,0.00030316,7]
[335006214,1723731047759,-151.959641,0.00030316,7]
[335006215,1723731047768,-151.959641,0.00030316,7]
[335006216,1723731047778,-151.0,0.00030316,7]
[335006217,1723731047787,-151.0,0.00030316,7]
[335006218,1723731047796,-877.93232063,0.00030316,11]
[335006219,1723731047806,-3030.56260468,0.00030317,30]
[335006220,1723731047819,-594.9,0.00030317,30]
[335006248,1723732152145,-169.608858,0.00014247,2]
[335006249,1723732152184,-76.61621584,0.00014247,2]
[335006375,1723732239978,-174.75672236,0.00012779,2]
[335006376,1723732239988,-673.38378416,0.00014247,2]
[335006378,1723732239998,-156.56267046,0.0002,2]
[335006380,1723732240007,-750.0,0.00020707,2]
[335006382,1723732240017,-371.85724114,0.000212,30]
[335006383,1723732240026,-251.0,0.00022364,2]
[335006385,1723732240036,-213.036515,0.00022394,2]
[335006387,1723732240046,-978.723283,0.00022668,2]
[335006389,1723732240056,-1689.67946437,0.00024,60]
[335006391,1723732240067,-2449.9943676,0.00024,60]
[335006392,1723732240083,-40191.74751032,0.00024,60]
[335006393,1723732240094,-5437.3087184,0.00024,60]
[335006404,1723732242955,-1386.23172133,0.00024,60]
[335006407,1723732243480,-2954.26693636,0.00024,60]
[335006424,1723732245978,-766.149674,0.00024,60]
[335006526,1723733431959,-214.61594227,0.00012934,2]
[335006527,1723733431971,-156.91451497,0.00012971,2]
[335006528,1723733431981,-198.43897757,0.00013051,2]
[335006529,1723733431990,-850.36837131,0.00013497,2]
[335006530,1723733432000,-223.26291844,0.00013697,2]
[335006531,1723733432010,-750.0,0.00014247,2]
[335006532,1723733432019,-251.0,0.00019238,2]
[335006533,1723733432029,-300.0,0.00019859,2]
[335006534,1723733432039,-3178.6101102,0.0001986,2]
[335006535,1723733432051,-2490.45,0.0001986,2]
[335006558,1723733438436,-12250.2940774,0.0001986,2]
[335006559,1723733438446,-156.56267046,0.0002,2]
[335006560,1723733438456,-750.0,0.00020707,2]
[335006561,1723733438466,-782.12449386,0.00023888,2]
[335006562,1723733438476,-1703.38812248,0.000239,2]
[335006563,1723733438486,-12983.9373209,0.00024,60]
[335006564,1723733438496,-154.77557542,0.00024,2]
[335006565,1723733438506,-1417.92634465,0.00024,2]
[335006566,1723733438518,-609.445,0.00024,2]
[335006584,1723733443244,-782.12449386,0.00023885,2]
[335006585,1723733443254,-376.04230777,0.00024,2]
[335006616,1723733446409,-8099.13504003,0.00024,2]
[335006617,1723733446419,-5949.30000001,0.00024,7]
[335006618,1723733446432,-10337.19273734,0.0002426,2]
[335006619,1723733446442,-5242.02170044,0.00024299,2]
[335006620,1723733446451,-160.73794928,0.00024326,2]
[335006621,1723733446461,-882.43417531,0.00024349,2]
[335006622,1723733446471,-1110.29005483,0.00024366,2]
[335006623,1723733446480,-2606.26346968,0.00024385,2]
[335006624,1723733446490,-277.52010074,0.00024651,2]
[335006625,1723733446501,-3710.68111237,0.0002498,3]
[335006626,1723733446511,-23226.33098157,0.00025,30]
[335006627,1723733446520,-154.92739771,0.00025,2]
[335006628,1723733446530,-152.36686118,0.0002596,2]
[335006629,1723733446539,-5000.0,0.00026,2]
[335006630,1723733446549,-186.505,0.00026532,2]
[335006631,1723733446559,-750.0,0.00027167,2]
[335006632,1723733446568,-152.36686118,0.0002796,2]
[335006633,1723733446579,-1703.38812241,0.00028157,2]
[335006634,1723733446589,-213.036515,0.00029618,2]
[335006635,1723733446598,-152.36686118,0.0002996,2]
[335006636,1723733446608,-327.28139236,0.0003,30]
[335006637,1723733446618,-254.9960246,0.0003,5]
[335006638,1723733446627,-1000.0,0.0003,30]
[335006639,1723733446637,-504.39479182,0.00030165,2]
[335006640,1723733446646,-22981.77,0.00030314,3]
[335006641,1723733446656,-1497.1902152,0.00030315,2]
[335006642,1723733446666,-407.30115451,0.00030317,3]
[335006643,1723733446676,-507.03977148,0.00030317,4]
[335006644,1723733446687,-500.0,0.00030317,2]
[335006645,1723733446696,-438.96616032,0.00030323,11]
[335006646,1723733446707,-100215.81892297,0.00030324,30]
[335006678,1723733711599,1013.71,0.00027,120]
[335006679,1723733722629,170.13351693,0.0001,30]
[335006765,1723734640385,-647.304429,0.00014247,2]
[335006767,1723734640394,-590.99634495,0.000199,3]
[335006769,1723734640404,-156.56267046,0.0002,2]
[335006771,1723734640415,-647.304429,0.00020707,2]
[335006772,1723734640424,-154.79103211,0.00022,2]
[335006773,1723734640433,-191.732863,0.00022365,2]
[335006774,1723734640442,-251.0,0.00022877,2]
[335006775,1723734640451,-6104.41789868,0.00023897,2]
[335006776,1723734640468,-1685.19000363,0.00023897,2]
[335006777,1723734640483,-2214.01091419,0.00023897,2]
[335006780,1723734643353,-295.835,0.00023897,2]
[335006824,1723734656561,900000.0,0.00027,120]
[335006825,1723734672727,3174.0,0.00027,120]
[335006840,1723735028568,200.0,0.00025,120]
[335006857,1723735612158,-174.75672236,0.00012989,2]
[335006858,1723735612179,-131.65766154,0.00013051,2]
[335007154,1723735840574,-434.14423793,0.00013477,2]
[335007156,1723735840583,-416.41210938,0.00013971,3]
[335007158,1723735840593,-160.66884839,0.00013971,2]
[335007160,1723735840602,-177.93990264,0.00014245,2]
[335007161,1723735840612,-582.573986,0.00014247,2]
[335007163,1723735840622,-504.14303749,0.00015,2]
[335007164,1723735840632,-3943.37287429,0.00018,2]
[335007165,1723735840644,-796.06063726,0.00018,2]
[335007179,1723735843677,-280.27257814,0.00018,2]
[335007180,1723735843690,-1454.59754063,0.00018,2]
[335007181,1723735843699,-250.02384311,0.0002,2]
[335007182,1723735843708,-151.31843755,0.0002,2]
[335007183,1723735843718,-236.0549906,0.00020396,2]
[335007184,1723735843728,-582.573986,0.00020707,2]
[335007185,1723735843738,-163.88285828,0.00022,2]
[335007186,1723735843748,-302.63687509,0.00022,2]
[335007187,1723735843761,-133.14146875,0.0002222,2]
[335007311,1723736666678,26721.09939505,0.00027,120]
[335007350,1723737032542,-10680.83051401,0.00012779,2]
[335007351,1723737032552,-361.78686494,0.00012934,2]
[335007353,1723737032562,-524.316587,0.00014247,2]
[335007355,1723737032571,-246.2250782,0.00014247,2]
[335007356,1723737032580,-3000.0,0.000207,2]
[335007357,1723737032590,-524.316587,0.00020707,2]
[335007358,1723737032600,-1326.360543,0.00020799,2]
[335007359,1723737032609,-182.146219,0.0002148,2]
[335007360,1723737032619,-4364.85454343,0.00021734,2]
[335007361,1723737032631,-4364.85454343,0.00021961,2]
[335007362,1723737032642,-200.0,0.00023,2]
[335007364,1723737032652,-1521.76418209,0.00023402,2]
[335007366,1723737032662,-10337.19273734,0.00023485,2]
[335007368,1723737032672,-4612.12664002,0.00023495,2]
[335007394,1723737038963,-629.89506042,0.00023495,2]
[335007396,1723737038973,-435.0,0.00023518,2]
[335007397,1723737038983,-154.77557542,0.00023535,2]
[335007398,1723737039001,-782.12449386,0.0002354,2]
[335007399,1723737039013,-882.43417531,0.00023544,2]
[335007400,1723737039023,-277.52010074,0.00023554,2]
[335007401,1723737039034,-882.43417531,0.00023554,2]
[335007402,1723737039043,-277.52010074,0.00023554,2]
[335007403,1723737039053,-160.73794928,0.00023554,2]
[335007404,1723737039063,-1110.29005483,0.00023565,2]
[335007405,1723737039073,-271.33563937,0.00023576,2]
[335007406,1723737039083,-153.198359,0.00023599,7]
[335007407,1723737039093,-153.198359,0.00023599,7]
[335007408,1723737039104,-180.654497,0.00023629,7]
[335007409,1723737039113,-180.654497,0.00023629,7]
[335007410,1723737039123,-2606.26346968,0.00024193,2]
[335007411,1723737039133,-380.0,0.00024658,2]
[335007412,1723737039143,-200.0,0.00024658,15]
[335007413,1723737039277,-151.0,0.00024658,7]
[335007414,1723737039287,-372.500258,0.00024658,2]
[335007415,1723737039297,-372.500258,0.00024658,2]
[335007416,1723737039307,-203.88510861,0.0002489,2]
[335007417,1723737039318,-153.198359,0.00024939,7]
[335007418,1723737039329,-153.198359,0.00024939,7]
[335007419,1723737039339,-151.0,0.00024949,7]
[335007420,1723737039350,-151.0,0.00024949,7]
[335007421,1723737039360,-153.198359,0.00024959,7]
[335007422,1723737039370,-153.198359,0.00024959,7]
[335007423,1723737039381,-372.500258,0.0002496,2]
[335007424,1723737039391,-372.500258,0.0002496,2]
[335007425,1723737039400,-161.365817,0.0002496,7]
[335007426,1723737039410,-161.365817,0.0002496,7]
[335007427,1723737039419,-151.0,0.0002496,7]
[335007428,1723737039429,-151.0,0.0002496,7]
[335007429,1723737039439,-8671.18882276,0.0002496,3]
[335007508,1723737046678,-160.73794928,0.00023554,2]
[335007509,1723737046688,-15064.04117724,0.0002496,3]
[335007510,1723737046699,-500.0,0.00024969,2]
[335007511,1723737046710,-500.0,0.00024969,2]
[335007512,1723737046720,-500.0,0.00024969,2]
[335007513,1723737046731,-500.0,0.00024969,2]
[335007514,1723737046743,-500.0,0.00024969,2]
[335007515,1723737046753,-183.93046143,0.00024969,2]
[335007516,1723737046763,-500.0,0.00024969,2]
[335007517,1723737046772,-500.0,0.00024969,2]
[335007518,1723737046782,-500.0,0.00024969,2]
[335007520,1723737046792,-500.0,0.00024969,2]
[335007521,1723737046803,-500.0,0.00024969,2]
[335007522,1723737046813,-500.0,0.00024969,2]
[335007523,1723737046823,-500.0,0.00024969,2]
[335007524,1723737046833,-500.0,0.00024969,2]
[335007525,1723737046843,-500.0,0.00024969,2]
[335007526,1723737046853,-500.0,0.00024969,2]
[335007527,1723737046870,-500.0,0.00024969,2]
[335007528,1723737046887,-161.365817,0.00024969,7]
[335007529,1723737046904,-161.365817,0.00024969,7]
[335007530,1723737046916,-18242.28,0.00024969,3]
[335007531,1723737046930,-151.0,0.00024969,7]
[335007532,1723737046943,-151.0,0.00024969,7]
[335007533,1723737046959,-165.2,0.0002497,3]
[335007534,1723737046974,-28482.28,0.0002497,3]
[335007535,1723737046988,-372.500258,0.0002497,2]
[335007536,1723737047004,-372.500258,0.0002497,2]
[335007537,1723737047018,-153.198359,0.0002497,7]
[335007538,1723737047031,-151.0,0.0002497,7]
[335007539,1723737047045,-151.0,0.0002497,7]